Cogmind - Beta 17 @@@ ROGUE MODE // 2026.07.13 @ 17:27:18 // Winter2019/RPGLIKE Player: Gallgagger Result: Destroyed by P1-3CE with P1-3CE's Gatling Flakker Performance ------------- Evolutions (1) 500 Regions Visited (6) 1200 Robots Destroyed (12) 60 Value Destroyed (277) 277 Prototype IDs (23) 460 Alien Tech Used (0) 0 Bonus (300) 300 TOTAL SCORE: 2797 Bonus ------- Aligned with FarCom 300 Cogmind --------- Core Integrity 0/2000 Matter 240/300 Energy 100/100 System Corruption 1% Temperature Cool (0) Movement Core (50) Location -8/Mines Parts ------- > --- POWER (1) -------- (None) > --- PROPULSION (2) --- (None) > --- UTILITY (1) ------ (None) > --- WEAPON (2) ------- (None) > --- INVENTORY (0) ---- (None) Peak State ------------ > --- POWER ------------ (None) > --- PROPULSION ------- VTOL Module VTOL Module > --- UTILITY ---------- (None) > --- WEAPON ----------- Heavy Assault Rifle Heavy Assault Rifle > --- INVENTORY -------- (None) [Rating: 8] Favorites ----------- Power None Propulsion VTOL Module Flight Unit VTOL Module Utility None Weapon Heavy Assault Rifle Energy Gun Medium Laser Ballistic Gun Heavy Assault Rifle Build | -11 -10 -10 -9 -9 -9 -8 ------- Run | Yrd Mat Min Mat Min Exi Min Slots Evolved 2 | . 1 1 . . . . Power . | . . . . . . . Propulsion 1 | . . 1 . . . . Utility . | . . . . . . . Weapon 1 | . 1 . . . . . Parts Attached 7 | 1 2 2 2 . . . Power . | . . . . . . . Engine . | . . . . . . . Core . | . . . . . . . Reactor . | . . . . . . . Propulsion 4 | . . 2 2 . . . Treads . | . . . . . . . Leg . | . . . . . . . Wheel . | . . . . . . . Hover . | . . . . . . . Flight 4 | . . 2 2 . . . Utility . | . . . . . . . Device . | . . . . . . . Storage . | . . . . . . . Processor . | . . . . . . . Hackware . | . . . . . . . Protection . | . . . . . . . Artifact . | . . . . . . . Weapon 3 | 1 2 . . . . . Energy Gun 1 | 1 . . . . . . Energy Cannon . | . . . . . . . Ballistic Gun 2 | . 2 . . . . . Ballistic Cannon . | . . . . . . . Launcher . | . . . . . . . Special Weapon . | . . . . . . . Impact Weapon . | . . . . . . . Slashing Weapon . | . . . . . . . Piercing Weapon . | . . . . . . . Special Melee Weapon . | . . . . . . . Unidentified Prototypes . | . . . . . . . Parts Lost 4 | . . . . . . 4 Power . | . . . . . . . Propulsion 2 | . . . . . . 2 Utility . | . . . . . . . Weapon 2 | . . . . . . 2 Highest Loss Streak 4 | . . . . . . 4 To Critical Strikes . | . . . . . . . Average Backups . | . . . . . . . Power . | . . . . . . . Propulsion . | . . . . . . . Utility . | . . . . . . . Weapon . | . . . . . . . Tool/Special . | . . . . . . . Unused Backups . | . . . . . . . Power . | . . . . . . . Propulsion . | . . . . . . . Utility . | . . . . . . . Weapon . | . . . . . . . Tool/Special . | . . . . . . . Average Slot Usage (%) 53 | . 33 45 66 66 66 60 Flight 20 | . . 6 33 33 33 30 Energy Gun 3 | . 10 . . . . . Ballistic Gun 29 | . 23 38 33 33 33 30 Peak Build Rating 8 | 1 4 6 8 8 8 8 Average Rating 5 | . 2 4 7 8 8 7 On Entrance 5 | . 1 4 6 8 8 8 Avg Prop Armor Cover (%) . | . . . . . . . Naked Turns 7 | . . . . . . 7 Heaviest Build 6 | 2 6 6 6 6 6 6 Greatest Support 23 | 3 18 23 23 23 23 23 Greatest Overweight (x) . | . . . . . . . Average Overweight (x) . | . . . . . . . Largest Inventory Capacity . | . . . . . . . Average Capacity . | . . . . . . . Most Carried . | . . . . . . . Average Carried . | . . . . . . . Final Capacity . | . . . . . . . Final Carried . | . . . . . . . Class Distribution -------------------- 60% | Sprinter 39% | Mutant Dominant Class ---------------- Mutant | -10/Materials Mutant | -10/Mines Sprinter | -9/Materials Sprinter | -9/Mines Sprinter | -9/Exiles Sprinter | -8/Mines Resources | -11 -10 -10 -9 -9 -9 -8 ----------- Run | Yrd Mat Min Mat Min Exi Min Matter Collected 409 | 51 228 14 . . . 116 Remotely . | . . . . . . . Salvage Created 282 | . 163 14 . . . 105 Parts 33 | . 6 7 . . . 20 Haulers Intercepted . | . . . . . . . Recyclers Shooed 1 | . . 1 . . . . Parts Field Recycled . | . . . . . . . Retrieved Matter . | . . . . . . . Parts Self-Destructed . | . . . . . . . Prevented . | . . . . . . . Parts Restored . | . . . . . . . Kills | -11 -10 -10 -9 -9 -9 -8 ------- Run | Yrd Mat Min Mat Min Exi Min Combat Hostiles Destroyed 11 | . 2 3 . . . 6 Guns 11 | . 2 3 . . . 6 Classes Destroyed 4 | . 2 1 . . . 1 Recycler 1 | . 1 . . . . . Swarmer 6 | . . 3 . . . 3 Grunt 4 | . 2 . . . . 2 Brawler 1 | . . . . . . 1 Best Kill Streak 6 | . 3 6 . . . 3 Combat Bots Only 3 | . 2 3 . . . 3 Max Kills in Single Turn 1 | . 1 1 . . . 1 Gunslinging . | . . . . . . . Exploded . | . . . . . . . Melee . | . . . . . . . Uniques/NPCs Destroyed . | . . . . . . . Combat | -11 -10 -10 -9 -9 -9 -8 -------- Run | Yrd Mat Min Mat Min Exi Min Hostile Shots Fired 238 | . 61 19 9 13 . 136 Missed 78 | . 24 6 8 4 . 36 Hits 160 | . 37 13 1 9 . 100 Projectile 160 | . 37 13 1 9 . 100 Critical Strikes 1 | . . . . . . 1 Damage Taken 2568 | . 399 106 14 66 . 1983 Core 2286 | . 344 88 11 54 . 1789 Absorbed by Shields . | . . . . . . . Redirected to Core 973 | . 170 53 11 35 . 704 Core Remaining (%) 64 | 100 . 28 . . . . Volleys Fired 40 | . 9 8 . . 2 21 Largest 2 | . 2 2 . . 2 2 Hottest 46 | . 46 46 . . 46 46 Shots Fired 77 | . 18 16 . . 4 39 Gun 77 | . 18 16 . . 4 39 Cannon . | . . . . . . . Launcher . | . . . . . . . Special . | . . . . . . . Kinetic 77 | . 18 16 . . 4 39 Thermal . | . . . . . . . Explosive . | . . . . . . . Electromagnetic . | . . . . . . . Robot Hit Streak 13 | . 13 5 . . . 5 Robot Miss Streak 3 | . 2 3 . . . 3 Penetration Max . | . . . . . . . Secondary Targets 4 | . 1 1 . . . 2 Max Gunslinging Chain 1 | . 1 1 . . . 1 Shots Hit Robots 45 | . 14 8 . . . 23 Core Hits 20 | . 5 4 . . . 11 Critical Kills 1 | . 1 . . . . . Critical Parts Destroyed . | . . . . . . . Critical Strikes 1 | . 1 . . . . . Destroy 1 | . 1 . . . . . Melee Attacks . | . . . . . . . Impact . | . . . . . . . Slashing . | . . . . . . . Piercing . | . . . . . . . Sneak Attacks . | . . . . . . . Combat Hostiles . | . . . . . . . Follow-up Attacks . | . . . . . . . Damage Inflicted 704 | . 215 136 . . . 353 Guns 694 | . 215 136 . . . 343 Cannons . | . . . . . . . Explosions . | . . . . . . . Melee . | . . . . . . . Ramming 10 | . . . . . . 10 Kinetic 694 | . 215 136 . . . 343 Thermal . | . . . . . . . Explosive . | . . . . . . . Electromagnetic . | . . . . . . . Impact . | . . . . . . . Slashing . | . . . . . . . Piercing . | . . . . . . . Highest Corruption 1 | . . . 1 1 1 1 Average Corruption 1 | . . . 1 1 1 1 Corruption Purged . | . . . . . . . Corruption Blocked . | . . . . . . . Effects 3 | . . . 1 . . 2 Heat Flow Errors 1 | . . . . . . 1 Data Loss (minor) 1 | . . . 1 . . . Data Loss (major) 1 | . . . . . . 1 Overload Shots . | . . . . . . . Overflow Damage . | . . . . . . . Projectiles . | . . . . . . . Explosions . | . . . . . . . Melee . | . . . . . . . Knockbacks . | . . . . . . . Impact . | . . . . . . . Kinetic . | . . . . . . . Secondary . | . . . . . . . Self-Inflicted Damage 5 | . . . . . . 5 Shots . | . . . . . . . Rammed 3 | . 1 . . . . 2 Targets Rammed 3 | . 1 . . . . 2 Kicked . | . . . . . . . Crushed . | . . . . . . . Highest Temperature 242 | . . . . . . 242 Average Temperature 108 | . . . . . . 108 Received Heat Transfer 204 | . 141 . 9 . . 54 Siege Activations . | . . . . . . . Martial Activations . | . . . . . . . Shielding Activations . | . . . . . . . Robots Disrupted . | . . . . . . . Combat Hostiles . | . . . . . . . Robots Corrupted . | . . . . . . . Combat Hostiles . | . . . . . . . Parts Fried . | . . . . . . . Impact Corruptions . | . . . . . . . Robots Melted . | . . . . . . . Combat Hostiles . | . . . . . . . Parts Melted . | . . . . . . . Heat Transferred . | . . . . . . . Parts Sabotaged . | . . . . . . . Parts Stolen . | . . . . . . . Parts Stripped . | . . . . . . . Power Chain Reactions . | . . . . . . . Alert | -11 -10 -10 -9 -9 -9 -8 ------- Run | Yrd Mat Min Mat Min Exi Min Maximum Alert Level . | . . . . . . . Low Security (%) 100 | 100 100 100 100 100 . 100 Level 1 . | . . . . . . . Level 2 . | . . . . . . . Level 3 . | . . . . . . . Level 4 . | . . . . . . . Level 5 . | . . . . . . . High Security . | . . . . . . . Max Security . | . . . . . . . Peak Influence 145 | . 145 116 44 45 . 90 Initial 56 | . . 56 44 9 . . Average 42 | . 33 91 37 15 . 55 Influence Increases 430 | . 175 70 . 45 . 140 Destroy 0b10 Robot/C 220 | . 40 60 . . . 120 Destroy 0b10 Robot/NC 5 | . 5 . . . . . Destroy Leader 40 | . 10 10 . . . 20 Lose Combat Pursuer 165 | . 120 . . 45 . . Influence Decreases 420 | . 30 99 92 44 25 130 Entered New Map 201 | . . 89 72 15 25 . Time Decay 179 | . 30 10 20 29 . 90 Lost Part 40 | . . . . . . 40 Squads Dispatched 1 | . 1 . . . . . Investigation 1 | . 1 . . . . . Extermination . | . . . . . . . Reinforcement . | . . . . . . . Assault . | . . . . . . . Garrison . | . . . . . . . Intercept . | . . . . . . . Searches Triggered . | . . . . . . . Construction Impeded . | . . . . . . . Haulers Reinforced . | . . . . . . . Active Scanning Responses . | . . . . . . . Cargo Convoy Interrupts . | . . . . . . . Stealth | -11 -10 -10 -9 -9 -9 -8 --------- Run | Yrd Mat Min Mat Min Exi Min Distress Signals 1 | . 1 . . . . . Communications Jammed . | . . . . . . . Distress Signals . | . . . . . . . Times Spotted 45 | . 14 3 6 14 1 7 Peak Tracking Total 22 | . 9 3 6 22 9 4 Tactical Retreats 5 | . 4 . . 1 . . Traps | -11 -10 -10 -9 -9 -9 -8 ------- Run | Yrd Mat Min Mat Min Exi Min Traps Triggered 2 | . 1 . 1 . . . Indirectly . | . . . . . . . Trap Hack Attempts . | . . . . . . . Triggered . | . . . . . . . Disarmed . | . . . . . . . Reprogrammed . | . . . . . . . Reused . | . . . . . . . Traps Extracted . | . . . . . . . Installed . | . . . . . . . Triggered . | . . . . . . . Machines | -11 -10 -10 -9 -9 -9 -8 ---------- Run | Yrd Mat Min Mat Min Exi Min Machines Disabled 1 | . . . . . 1 . Max in Single Turn 1 | . . . . . 1 . Machines Repaired . | . . . . . . . Machines Dismantled . | . . . . . . . Machines Sabotaged . | . . . . . . . Overloaded Fab Kills . | . . . . . . . Hacking | -11 -10 -10 -9 -9 -9 -8 --------- Run | Yrd Mat Min Mat Min Exi Min Machines Accessed 1 | . . . . . 1 . Terminals . | . . . . . . . Fabricators . | . . . . . . . Repair Stations . | . . . . . . . Recycling Units . | . . . . . . . Scanalyzers . | . . . . . . . Garrison Access . | . . . . . . . Total Hacks 1 | . . . . . 1 . Successful 1 | . . . . . 1 . Failed . | . . . . . . . Catastrophic . | . . . . . . . Database Lockouts . | . . . . . . . Manual 1 | . . . . . 1 . Terminals . | . . . . . . . Fabricators . | . . . . . . . Repair Stations . | . . . . . . . Recycling Units . | . . . . . . . Scanalyzers . | . . . . . . . Garrison Access . | . . . . . . . Terminal Hacks 1 | . . . . . 1 . Proto ID Catalog 1 | . . . . . 1 . Fabricator Hacks . | . . . . . . . Repair Station Hacks . | . . . . . . . Recycling Unit Hacks . | . . . . . . . Scanalyzer . | . . . . . . . Garrison Access Hacks . | . . . . . . . Unauthorized Hacks . | . . . . . . . Terminals . | . . . . . . . Fabricators . | . . . . . . . Repair Stations . | . . . . . . . Recycling Units . | . . . . . . . Scanalyzers . | . . . . . . . Garrison Access . | . . . . . . . Data Cores Recovered . | . . . . . . . Used . | . . . . . . . Hacking Detections . | . . . . . . . Full Trace Events . | . . . . . . . Feedback Events . | . . . . . . . Feedback Blocked . | . . . . . . . Robot Schematics Acquired . | . . . . . . . Robots Built . | . . . . . . . Authchips . | . . . . . . . Time . | . . . . . . . Total Robot Build Rating . | . . . . . . . Part Schematics Acquired . | . . . . . . . Parts Built . | . . . . . . . Authchips . | . . . . . . . Time . | . . . . . . . Total Part Build Rating . | . . . . . . . Part Studies Acquired . | . . . . . . . Parts Repaired . | . . . . . . . Time . | . . . . . . . Parts Recycled . | . . . . . . . Recycled Matter . | . . . . . . . Retrieved Matter . | . . . . . . . Retrieved Components . | . . . . . . . Parts Scanalyzed . | . . . . . . . Part Schematics Acquired . | . . . . . . . Parts Damaged . | . . . . . . . Bothacking | -11 -10 -10 -9 -9 -9 -8 ------------ Run | Yrd Mat Min Mat Min Exi Min Used RIF Installer . | . . . . . . . Robots Hacked . | . . . . . . . Non-combat . | . . . . . . . Combat . | . . . . . . . Robot Hacks Applied . | . . . . . . . Relay Couplers Released . | . . . . . . . Fabnet Peak Effective % . | . . . . . . . Robots Rewired . | . . . . . . . Allies Hacked . | . . . . . . . Hacks Repelled . | . . . . . . . Allies | -11 -10 -10 -9 -9 -9 -8 -------- Run | Yrd Mat Min Mat Min Exi Min Total Allies . | . . . . . . . Largest Group . | . . . . . . . Highest-Rated Group . | . . . . . . . Highest-Rated Ally . | . . . . . . . Total Orders . | . . . . . . . Ally Attacks . | . . . . . . . Total Damage . | . . . . . . . Kills . | . . . . . . . Allies Corrupted . | . . . . . . . Allies Melted . | . . . . . . . Intel | -11 -10 -10 -9 -9 -9 -8 ------- Run | Yrd Mat Min Mat Min Exi Min Active Infowar (turns) . | . . . . . . . Robot Analysis Total . | . . . . . . . Derelict Logs Recovered . | . . . . . . . Drone Launches . | . . . . . . . Drone Recoveries . | . . . . . . . Exploration | -11 -10 -10 -9 -9 -9 -8 ------------- Run | Yrd Mat Min Mat Min Exi Min Turns Passed 612 | 13 177 39 42 60 100 181 Spaces Moved 1144 | 22 291 27 117 186 215 286 Core 340 | 22 291 17 . . . 10 Treads . | . . . . . . . Legs . | . . . . . . . Wheels . | . . . . . . . Hover . | . . . . . . . Flight 804 | . . 10 117 186 215 276 Fastest Speed 32 | 50 50 37 32 32 32 32 Average Speed 37 | 50 50 45 33 32 32 32 Slowest Speed 50 | 50 50 50 37 32 32 50 Overloaded Moves . | . . . . . . . Propulsion Burnouts . | . . . . . . . Robots Hopped 7 | . . . 2 2 . 3 Potential Cave-ins . | . . . . . . . Cave-ins Triggered . | . . . . . . . Exploration Rate (%) 34 | 4 64 14 18 45 60 37 Regions Visited 6 Branch Regions 4 Pre-discovered Areas . | . . . . . . . Known Exits Taken . | . . . . . . . Unknown Exits Taken 6 | 1 1 1 1 1 1 . Scrap Searched 1 | . . . . . . 1 Spaces Dug . | . . . . . . . Terrain Destroyed . | . . . . . . . Melee . | . . . . . . . Projectile . | . . . . . . . AOE . | . . . . . . . Terrain Rammed . | . . . . . . . Walls Destroyed . | . . . . . . . Machines Disabled . | . . . . . . . Actions | -11 -10 -10 -9 -9 -9 -8 --------- Run | Yrd Mat Min Mat Min Exi Min Total 1233 | 22 302 36 118 183 241 331 Wait 37 | . . . . . 25 12 Move 1124 | 21 290 26 112 181 214 280 Hop 7 | . . . 2 2 . 3 Pick Up . | . . . . . . . Fast Attach 4 | 1 1 2 . . . . Attach . | . . . . . . . Detach . | . . . . . . . Swap 3 | . 1 . 2 . . . Drop 2 | . . . 2 . . . Fire 40 | . 9 8 . . 2 21 Melee . | . . . . . . . Ram 3 | . 1 . . . . 2 Kick . | . . . . . . . Crush . | . . . . . . . Escape Stasis . | . . . . . . . Rewire . | . . . . . . . Trap . | . . . . . . . Miscellaneous 13 | . . . . . . 13 Route ------- -11/Scrapyard -10/Materials (discovered 4 exits: [*Mat x3] / [*Min]) -10/Mines -9/Materials -9/Mines -9/Exiles -8/Mines (discovered 1 exit: [*Mat]) History --------- Turn | Location | Event 6 | -11/Scrapyard | Discovered new exit (range 15) 14 | -11/Scrapyard | Entered Materials 31 | -10/Materials | Discovered new exit (range 14) 63 | -10/Materials | Discovered new exit (range 15) 84 | -10/Materials | Upgraded with Weapon slot (x1) 119 | -10/Materials | Discovered new exit (range 13) 169 | -10/Materials | Core integrity fell below 50% 188 | -10/Materials | Discovered new exit (range 6) 191 | -10/Materials | Entered Mines 197 | -10/Mines | Discovered new exit (range 13) 198 | -10/Mines | Found a damaged Exp. Sensor Array with a note attached 225 | -10/Mines | Upgraded with Propulsion slot (x1) 230 | -10/Mines | Entered Materials 231 | -9/Materials | Core integrity fell below 50% 232 | -9/Materials | Reached level 2 270 | -9/Materials | Discovered new exit (range 9) 272 | -9/Materials | Entered Mines 273 | -9/Mines | Assembled infested the area 274 | -9/Mines | Reached level 3 330 | -9/Mines | Deemed a non-threat by the Exiles lab entrance 330 | -9/Mines | Discovered new exit (range 5) 332 | -9/Mines | Entered Exiles 340 | -9/Exiles | Met 8R-AWN 346 | -9/Exiles | Met EX-HEX 355 | -9/Exiles | Met EX-BIN 359 | -9/Exiles | Aligned with FarCom system 359 | -9/Exiles | Given EX-Vault access code 367 | -9/Exiles | Opened EX-Vault 375 | -9/Exiles | Warned to stay clear of 0b10 Research branches 385 | -9/Exiles | Met EX-DEC 393 | -9/Exiles | Attacked by the Exiles 404 | -9/Exiles | Discovered new exit (range 10) 432 | -9/Exiles | Entered Mines 477 | -8/Mines | Found a Scrap Suit stashed away for nefarious purposes 520 | -8/Mines | Reached level 4 530 | -8/Mines | Build established: Sprinter 547 | -8/Mines | Discovered new exit (range 9) 566 | -8/Mines | P1-3CE came to Exiles' defense 583 | -8/Mines | Core integrity fell below 20% 613 | -8/Mines | Destroyed by P1-3CE with P1-3CE's Gatling Flakker Last Messages --------------- 00589_ Core Extractor disabled. 00591_ Knocked back. 00591_ VTOL Module destroyed. 00591_ K-01 Serf collects debris. 00594_ Knocked back. 00597_ K-01 Serf collects debris. 00598_ Knocked back. 00598_ Hvy. Assault Rifle destroyed. 00601_ Knocked back. 00602_ K-01 Serf collects debris. 00603_ Hvy. Assault Rifle destroyed. 00603_ Knocked back. 00606_ VTOL Module destroyed. 00606_ Knocked back. 00606_ K-01 Serf collects debris. 00608_ Knocked back. 00611_ Slammed into P1-3CE. 00611_ Knocked back. 00612_ K-01 Serf collects debris. 00612_ Slammed into P1-3CE. Map ----- +----------------------------------------------------+ | ???# ## ## #???########??# #????? | | ???# < ## ## #???#[ #??## ##????? | | ???# ## ## #???#=""" #??## #?????? | | ???# ## ## #???# """ #?## #?????? | | ???############ ## #???#=""" ?## ##????? | | ??????????????# ## ##??#% [ ???# #????? | | ??????????????# ## ##??# #????# """ #????? | | ??????????????# ## ##?# ###### """ #????? | | ??????????????# ## ### """ ##????? | | ??????????????# ## ##### #?????? | | ??????????????# # ###r###### #?????? | | ??????????????# ##?# ## ##?????? | | ??????????????#### ###??# #### ##### ###??????? | | ?????????????????####????# #??# #???# #????????? | | ?????????????????????????# #### #???# #????????? | | ????????????????????????## ;## #???# #????????? | | ????????????????????????#; ## #???# #????????? | | ???????????????????????## ## ##### #????????? | | ??????????????????????## ## #????????? | | ??????????????????????#; #########????????? | | ??????????????????????## #???????????????? | | ??????????????????????#;;k #???????????????? | | ??????????????????????##;! ##???????????????? | | ????????###???????????##* #????????????????? | | ???????? #??????????## ! #????????????????? | | ????????# #??????????# @M# #????????????????? | | ????????# #??????# ## ## #????????????????? | | ????????# #?????# #?# ;# ########?????????? | | ????????# #?????# ??# ## #?????????? | | ????????# #?????### ???# ## #?????????? | | ????????# ####????###???# ######### #?????????? | | ????????# #??????????#*;??????????#?????????? | | ????????#### #??????????# ;????????????????????? | | ???????????# #??#########!#????????????????????? | | ???????????# #??#![=]%* !=!????????????????????? | | ???????????# ####[#########????????????????????? | | ???????????#! = ! #????????????????????????????? | | ???????????######=#????????????????????????????? | | ???????????????##%#####????????????????????????? | | ???????????????# =* #????????????????????????? | | ???????????##### #????????????????????????? | | ???????????# #????????????????????????? | | ???????????# ### #????????????????????????? | | ???????????# #?# #????????????????????????? | | ???????????# #?########????????????????????????? | | ???????????# #?????????????????????????????????? | | ???????????# #?????????????????????????????????? | | ???????????# #?????????????????????????????????? | | ???????????# #?????????????????????????????????? | | ???????????# ###???????????????????????????????? | +----------------------------------------------------+ Best States ------------- Heat Dissipation 25 Energy Generation 5 Energy Capacity 100 Matter Stores 300 Matter Capacity 300 Sight Range 16 Terrain Scan Density 10 Evasion (%) 63 Item Schematics ----------------- None Robot Schematics ------------------ None Fabricated ------------ Nothing Repaired ---------- Nothing Studied --------- None Alien Tech Used ----------------- None Achievements -------------- None Challenges ------------ None RPGLIKE | -11 -10 -10 -9 -9 -9 -8 --------- Run | Yrd Mat Min Mat Min Exi Min Levels Raised 3 | . . . 1 1 . 1 XP Earned 7650 | 3000 250 850 1500 500 350 1200 XP Spent 7280 | . 2300 500 105 . . 4375 Upgrades 33 | . 4 1 3 . . 25 Propulsion Slot 1 | . . 1 . . . . Weapon Slot 1 | . 1 . . . . . Core Integrity 28 | . . . 3 . . 25 Mass Support 3 | . 3 . . . . . Protomatter Created 123 | . . 20 . . . 103 Integrity Restored 279 | . . . . . . 279 Core 279 | . . . . . . 279 Protomatter Decayed 22 | . . 12 . . . 10 Game ------ Seed DrainedReactionShielding Manual? 0 Play Time 00:07:53 Cumulative 660.2 hours Start 2026.07.13 @ 17:21:44 End 2026.07.13 @ 17:27:18 Sessions 1 Manual Loads 0 Difficulty Rogue Special Mode Winter2019/RPGLIKE Game No. 267 Rogue 113 Adventurer 154 Explorer 0 Win Type - Total 22 Types 4/5/4/3/2/1/0/1/1/1 Lore% 95 Gallery% 88 Achievement% 68 Wizard Run 0 Options --------- Layout 0 ASCII 0 Keyboard 0 Movement Numpad Keybinds 0 Fullscreen 2 Font 18/SmallcapsGlow Map View 76x50 Zoom Use 0% Tactical HUD 1 Map Filters NONE Filters NONE Steam 1 RUN: 7926bd3c-1d77-4f11-ab5f-4ac4ac666172